[Event "Titled Tuesday Blitz October 25 Late 2022"]
[White "Firouzja, Alireza"]
[Black "Jobava, Baadur"]
[WhiteFideId "12573981"]
[BlackFideId "13601520"]
[WhiteElo "2903"]
[BlackElo "2582"]
[Result "1-0"]
[Round "09"]
[TimeControl "180+1"]
[Date "2022.10.26"]
[WhiteClock "0:00:06"]
[BlackClock "0:00:01"]

1. d4 {[%clk 0:03:00]}  d5 {[%clk 0:03:00]} 2. c4 {[%clk 0:02:59]}  c6 {[%clk 0:03:00]} 3. Nf3 {[%clk 0:02:53]}  Nf6 {[%clk 0:03:00]} 4. e3 {[%clk 0:02:52]}  Bf5 {[%clk 0:02:59]} 5. Nc3 {[%clk 0:02:52]}  e6 {[%clk 0:02:59]} 6. Nh4 {[%clk 0:02:51]}  Bg6 {[%clk 0:03:00]} 7. Nxg6 {[%clk 0:02:50]}  hxg6 {[%clk 0:03:01]} 8. Qb3 {[%clk 0:02:48]}  Qb6 {[%clk 0:03:01]} 9. g3 {[%clk 0:02:45]}  Nbd7 {[%clk 0:02:59]} 10. Bg2 {[%clk 0:02:45]}  g5 {[%clk 0:02:50]} 11. Bd2 {[%clk 0:02:32]}  g4 {[%clk 0:02:49]} 12. O-O-O {[%clk 0:02:31]}  Qxb3 {[%clk 0:02:37]} 13. axb3 {[%clk 0:02:31]}  Nb6 {[%clk 0:02:37]} 14. c5 {[%clk 0:02:23]}  Nbd7 {[%clk 0:02:37]} 15. Kc2 {[%clk 0:02:23]}  a6 {[%clk 0:02:36]} 16. b4 {[%clk 0:02:23]}  g6 {[%clk 0:02:33]} 17. Kd3 {[%clk 0:02:22]}  Bg7 {[%clk 0:02:31]} 18. h4 {[%clk 0:02:20]}  e5 {[%clk 0:02:20]} 19. Ra1 {[%clk 0:02:19]}  O-O {[%clk 0:02:13]} 20. Rhe1 {[%clk 0:02:10]}  Rfe8 {[%clk 0:02:12]} 21. Re2 {[%clk 0:02:08]}  Nf8 {[%clk 0:02:05]} 22. Rae1 {[%clk 0:01:40]}  Ne6 {[%clk 0:02:02]} 23. dxe5 {[%clk 0:01:13]}  Nd7 {[%clk 0:02:02]} 24. Kc2 {[%clk 0:01:13]}  Nxe5 {[%clk 0:01:59]} 25. Na4 {[%clk 0:01:13]}  Rad8 {[%clk 0:01:58]} 26. Bc3 {[%clk 0:01:05]}  Nf3 {[%clk 0:01:54]} 27. Bxf3 {[%clk 0:00:59]}  gxf3 {[%clk 0:01:55]} 28. Rd2 {[%clk 0:01:00]}  g5 {[%clk 0:01:16]} 29. Rh1 {[%clk 0:01:00]}  g4 {[%clk 0:01:13]} 30. Rhd1 {[%clk 0:00:53]}  f5 {[%clk 0:01:03]} 31. Bxg7 {[%clk 0:00:52]}  Nxg7 {[%clk 0:00:59]} 32. Nc3 {[%clk 0:00:48]}  Nh5 {[%clk 0:00:55]} 33. Rd4 {[%clk 0:00:43]}  Nf6 {[%clk 0:00:45]} 34. Rf4 {[%clk 0:00:43]}  Re5 {[%clk 0:00:45]} 35. Kb3 {[%clk 0:00:43]}  Kf7 {[%clk 0:00:45]} 36. Ka4 {[%clk 0:00:42]}  Ke6 {[%clk 0:00:35]} 37. Ka5 {[%clk 0:00:42]}  Rd7 {[%clk 0:00:34]} 38. Kb6 {[%clk 0:00:35]}  Rh7 {[%clk 0:00:31]} 39. Rfd4 {[%clk 0:00:33]}  Re7 {[%clk 0:00:17]} 40. Ka5 {[%clk 0:00:31]}  Kd7 {[%clk 0:00:15]} 41. b3 {[%clk 0:00:30]}  Kc7 {[%clk 0:00:16]} 42. Ka4 {[%clk 0:00:27]}  Ne8 {[%clk 0:00:15]} 43. Ka3 {[%clk 0:00:26]}  Ng7 {[%clk 0:00:15]} 44. Na4 {[%clk 0:00:22]}  Ne6 {[%clk 0:00:15]} 45. R4d2 {[%clk 0:00:23]}  Re4 {[%clk 0:00:13]} 46. Nc3 {[%clk 0:00:20]}  Re5 {[%clk 0:00:14]} 47. Rh1 {[%clk 0:00:19]}  Rh7 {[%clk 0:00:13]} 48. Na4 {[%clk 0:00:19]}  Ng7 {[%clk 0:00:11]} 49. Nb2 {[%clk 0:00:18]}  Nh5 {[%clk 0:00:10]} 50. Rhd1 {[%clk 0:00:17]}  Re4 {[%clk 0:00:10]} 51. Na4 {[%clk 0:00:15]}  Nxg3 {[%clk 0:00:07]} 52. fxg3 {[%clk 0:00:14]}  Rxe3 {[%clk 0:00:08]} 53. Rd4 {[%clk 0:00:08]}  f2 {[%clk 0:00:03]} 54. Rf4 {[%clk 0:00:07]}  Rxg3 {[%clk 0:00:02]} 55. Rxf2 {[%clk 0:00:07]}  Rxh4 {[%clk 0:00:01]} 56. Rxf5 {[%clk 0:00:07]}  Rhh3 {[%clk 0:00:02]} 57. Rf7+ {[%clk 0:00:07]}  Kb8 {[%clk 0:00:02]} 58. Rb1 {[%clk 0:00:05]}  Rf3 {[%clk 0:00:01]} 59. Rg7 {[%clk 0:00:05]}  g3 {[%clk 0:00:02]} 60. Rg8+ {[%clk 0:00:05]}  Kc7 {[%clk 0:00:01]} 61. Nb6 {[%clk 0:00:06]}  Rf7 {[%clk 0:00:01]} 62. Rc8# {[%clk 0:00:06]} 1-0


[Site "https://www.chess.com"]

[Event "Titled Tuesday Blitz October 25 Late 2022"]
[White "Goncalves, Davi Sulzbacher"]
[Black "Iliaguev, Nisim"]
[WhiteFideId "2154510"]
[BlackFideId "2817276"]
[WhiteElo "2182"]
[BlackElo "2264"]
[Result "1-0"]
[Round "09"]
[TimeControl "180+1"]
[Date "2022.10.26"]
[WhiteClock "0:00:04"]
[BlackClock "0:00:08"]

1. Nf3 {[%clk 0:03:00]}  g6 {[%clk 0:02:57]} 2. g3 {[%clk 0:03:01]}  Bg7 {[%clk 0:02:57]} 3. Bg2 {[%clk 0:03:01]}  c5 {[%clk 0:02:58]} 4. O-O {[%clk 0:03:02]}  Nc6 {[%clk 0:02:59]} 5. e4 {[%clk 0:03:02]}  e6 {[%clk 0:02:57]} 6. Re1 {[%clk 0:02:59]}  Nge7 {[%clk 0:02:57]} 7. c3 {[%clk 0:02:59]}  O-O {[%clk 0:02:58]} 8. d4 {[%clk 0:02:59]}  d5 {[%clk 0:02:57]} 9. e5 {[%clk 0:02:51]}  cxd4 {[%clk 0:02:52]} 10. cxd4 {[%clk 0:02:51]}  Nf5 {[%clk 0:02:52]} 11. Nc3 {[%clk 0:02:41]}  Bd7 {[%clk 0:02:49]} 12. Ne2 {[%clk 0:02:31]}  Rc8 {[%clk 0:02:47]} 13. Bg5 {[%clk 0:02:29]}  Qb6 {[%clk 0:02:40]} 14. g4 {[%clk 0:02:28]}  Nfe7 {[%clk 0:02:40]} 15. Qd2 {[%clk 0:02:07]}  f6 {[%clk 0:02:33]} 16. exf6 {[%clk 0:02:04]}  Bxf6 {[%clk 0:02:34]} 17. Rac1 {[%clk 0:01:24]}  Rf7 {[%clk 0:02:19]} 18. Bxf6 {[%clk 0:01:23]}  Rxf6 {[%clk 0:02:19]} 19. h4 {[%clk 0:01:24]}  Rcf8 {[%clk 0:02:17]} 20. Qe3 {[%clk 0:01:21]}  a5 {[%clk 0:01:31]} 21. b3 {[%clk 0:00:58]}  Nc8 {[%clk 0:01:31]} 22. h5 {[%clk 0:00:53]}  N8e7 {[%clk 0:01:21]} 23. h6 {[%clk 0:00:50]}  Nc8 {[%clk 0:01:06]} 24. Ne5 {[%clk 0:00:37]}  Qd8 {[%clk 0:01:00]} 25. f4 {[%clk 0:00:30]}  Nd6 {[%clk 0:01:01]} 26. Nxc6 {[%clk 0:00:24]}  Bxc6 {[%clk 0:00:53]} 27. g5 {[%clk 0:00:20]}  R6f7 {[%clk 0:00:45]} 28. Bh3 {[%clk 0:00:19]}  Nf5 {[%clk 0:00:28]} 29. Qxe6 {[%clk 0:00:18]}  Re8 {[%clk 0:00:26]} 30. Bxf5 {[%clk 0:00:11]}  gxf5 {[%clk 0:00:19]} 31. Rxc6 {[%clk 0:00:11]}  Rxe6 {[%clk 0:00:19]} 32. Rxe6 {[%clk 0:00:11]}  Re7 {[%clk 0:00:18]} 33. Re5 {[%clk 0:00:10]}  Rxe5 {[%clk 0:00:18]} 34. dxe5 {[%clk 0:00:10]}  d4 {[%clk 0:00:19]} 35. Ng3 {[%clk 0:00:10]}  Qd7 {[%clk 0:00:18]} 36. Kf2 {[%clk 0:00:08]}  d3 {[%clk 0:00:18]} 37. Ke3 {[%clk 0:00:09]}  d2 {[%clk 0:00:19]} 38. Rd1 {[%clk 0:00:09]}  Qc6 {[%clk 0:00:17]} 39. Rxd2 {[%clk 0:00:10]}  Qc3+ {[%clk 0:00:18]} 40. Rd3 {[%clk 0:00:07]}  Qc1+ {[%clk 0:00:18]} 41. Kd4 {[%clk 0:00:07]}  Kf7 {[%clk 0:00:17]} 42. Nxf5 {[%clk 0:00:07]}  Ke6 {[%clk 0:00:17]} 43. Ng7+ {[%clk 0:00:07]}  Ke7 {[%clk 0:00:18]} 44. Nf5+ {[%clk 0:00:07]}  Ke6 {[%clk 0:00:18]} 45. Ne3 {[%clk 0:00:04]}  Qa1+ {[%clk 0:00:16]} 46. Rc3 {[%clk 0:00:04]}  b5 {[%clk 0:00:14]} 47. f5+ {[%clk 0:00:03]}  Kd7 {[%clk 0:00:15]} 48. Kd3 {[%clk 0:00:03]}  b4 {[%clk 0:00:15]} 49. Rc4 {[%clk 0:00:03]}  Qxa2 {[%clk 0:00:15]} 50. Rd4+ {[%clk 0:00:02]}  Kc6 {[%clk 0:00:16]} 51. Kc4 {[%clk 0:00:02]}  Qe2+ {[%clk 0:00:15]} 52. Rd3 {[%clk 0:00:02]}  Qf3 {[%clk 0:00:15]} 53. Rd6+ {[%clk 0:00:02]}  Kc7 {[%clk 0:00:15]} 54. Nd5+ {[%clk 0:00:03]}  Kc8 {[%clk 0:00:15]} 55. Nb6+ {[%clk 0:00:02]}  Kc7 {[%clk 0:00:15]} 56. Nd5+ {[%clk 0:00:03]}  Kc8 {[%clk 0:00:16]} 57. e6 {[%clk 0:00:03]}  Qxf5 {[%clk 0:00:11]} 58. e7 {[%clk 0:00:02]}  Qe4+ {[%clk 0:00:11]} 59. Kc5 {[%clk 0:00:02]}  Qc2+ {[%clk 0:00:10]} 60. Kb6 {[%clk 0:00:02]}  Qf2+ {[%clk 0:00:11]} 61. Kc6 {[%clk 0:00:01]}  Qc2+ {[%clk 0:00:11]} 62. Kb6 {[%clk 0:00:01]}  Qf2+ {[%clk 0:00:11]} 63. Kxa5 {[%clk 0:00:02]}  Qc5+ {[%clk 0:00:11]} 64. Ka4 {[%clk 0:00:02]}  Qa7+ {[%clk 0:00:11]} 65. Kxb4 {[%clk 0:00:02]}  Qb7+ {[%clk 0:00:11]} 66. Nb6+ {[%clk 0:00:02]}  Kc7 {[%clk 0:00:11]} 67. Rd7+ {[%clk 0:00:01]}  Kxb6 {[%clk 0:00:06]} 68. Rxb7+ {[%clk 0:00:02]}  Ka6 {[%clk 0:00:07]} 69. Rc7 {[%clk 0:00:01]}  Kb6 {[%clk 0:00:07]} 70. Rd7 {[%clk 0:00:02]}  Kc6 {[%clk 0:00:08]} 71. e8=Q {[%clk 0:00:03]}  Kb6 {[%clk 0:00:08]} 72. Qe6# {[%clk 0:00:04]} 1-0


[Site "https://www.chess.com"]

[Event "Titled Tuesday Blitz October 25 Late 2022"]
[White "Goroshkov, Maksym"]
[Black "Gireman, Ja"]
[WhiteFideId "14142716"]
[BlackFideId "5043794"]
[WhiteElo "2257"]
[BlackElo "2153"]
[Result "1/2-1/2"]
[Round "09"]
[TimeControl "180+1"]
[Date "2022.10.26"]
[WhiteClock "0:00:09"]
[BlackClock "0:00:15"]

1. e4 {[%clk 0:03:00]}  e6 {[%clk 0:02:59]} 2. d4 {[%clk 0:03:00]}  d5 {[%clk 0:02:56]} 3. exd5 {[%clk 0:03:00]}  exd5 {[%clk 0:02:57]} 4. c4 {[%clk 0:03:01]}  Nf6 {[%clk 0:02:49]} 5. Nc3 {[%clk 0:03:01]}  Bb4 {[%clk 0:02:49]} 6. Nf3 {[%clk 0:03:01]}  O-O {[%clk 0:02:49]} 7. Be2 {[%clk 0:03:01]}  dxc4 {[%clk 0:02:47]} 8. Bxc4 {[%clk 0:02:58]}  Re8+ {[%clk 0:02:42]} 9. Be3 {[%clk 0:02:56]}  Nd5 {[%clk 0:02:41]} 10. O-O {[%clk 0:02:53]}  Bxc3 {[%clk 0:02:09]} 11. bxc3 {[%clk 0:02:52]}  Be6 {[%clk 0:02:02]} 12. Bxd5 {[%clk 0:02:43]}  Bxd5 {[%clk 0:02:03]} 13. Ne5 {[%clk 0:02:44]}  Nd7 {[%clk 0:01:58]} 14. Nd3 {[%clk 0:02:26]}  Nb6 {[%clk 0:01:53]} 15. Re1 {[%clk 0:02:17]}  Qf6 {[%clk 0:01:48]} 16. Nf4 {[%clk 0:02:09]}  Be4 {[%clk 0:01:46]} 17. Qb3 {[%clk 0:02:05]}  a5 {[%clk 0:01:39]} 18. c4 {[%clk 0:02:04]}  a4 {[%clk 0:01:36]} 19. Qb4 {[%clk 0:02:02]}  Qg5 {[%clk 0:01:24]} 20. d5 {[%clk 0:01:48]}  Nd7 {[%clk 0:01:12]} 21. Kh1 {[%clk 0:01:22]}  Ne5 {[%clk 0:01:12]} 22. h3 {[%clk 0:01:01]}  Nd3 {[%clk 0:01:04]} 23. Qd2 {[%clk 0:00:50]}  Nxf4 {[%clk 0:01:00]} 24. f3 {[%clk 0:00:51]}  Qxg2+ {[%clk 0:00:28]} 25. Qxg2 {[%clk 0:00:49]}  Nxg2 {[%clk 0:00:29]} 26. Kxg2 {[%clk 0:00:42]}  Bd3 {[%clk 0:00:29]} 27. c5 {[%clk 0:00:41]}  a3 {[%clk 0:00:24]} 28. Bf4 {[%clk 0:00:39]}  Red8 {[%clk 0:00:22]} 29. d6 {[%clk 0:00:38]}  cxd6 {[%clk 0:00:22]} 30. cxd6 {[%clk 0:00:37]}  Bc4 {[%clk 0:00:22]} 31. Re7 {[%clk 0:00:33]}  b5 {[%clk 0:00:17]} 32. Rb7 {[%clk 0:00:22]}  Rab8 {[%clk 0:00:16]} 33. Ra7 {[%clk 0:00:20]}  Ra8 {[%clk 0:00:16]} 34. Rb7 {[%clk 0:00:21]}  Rdb8 {[%clk 0:00:16]} 35. Rc7 {[%clk 0:00:20]}  Rd8 {[%clk 0:00:16]} 36. Kg3 {[%clk 0:00:15]}  f6 {[%clk 0:00:16]} 37. h4 {[%clk 0:00:15]}  Rac8 {[%clk 0:00:16]} 38. Ra7 {[%clk 0:00:14]}  b4 {[%clk 0:00:15]} 39. Rb7 {[%clk 0:00:14]}  Rb8 {[%clk 0:00:14]} 40. Rc7 {[%clk 0:00:12]}  Bf7 {[%clk 0:00:14]} 41. d7 {[%clk 0:00:09]}  Be6 {[%clk 0:00:14]} 42. Rd1 {[%clk 0:00:08]}  b3 {[%clk 0:00:14]} 43. axb3 {[%clk 0:00:07]}  Bxb3 {[%clk 0:00:13]} 44. Ra1 {[%clk 0:00:08]}  Be6 {[%clk 0:00:13]} 45. Ra7 {[%clk 0:00:07]}  Ra8 {[%clk 0:00:13]} 46. Rxa8 {[%clk 0:00:07]}  Rxa8 {[%clk 0:00:13]} 47. Bd6 {[%clk 0:00:07]}  Bxd7 {[%clk 0:00:13]} 48. Rxa3 {[%clk 0:00:07]}  Rd8 {[%clk 0:00:13]} 49. Ra7 {[%clk 0:00:05]}  Bc6 {[%clk 0:00:13]} 50. Bf4 {[%clk 0:00:06]}  Rd3 {[%clk 0:00:13]} 51. Bc7 {[%clk 0:00:02]}  Bxf3 {[%clk 0:00:12]} 52. Kh2 {[%clk 0:00:03]}  h5 {[%clk 0:00:12]} 53. Bg3 {[%clk 0:00:03]}  Bg4 {[%clk 0:00:12]} 54. Bf2 {[%clk 0:00:02]}  Rh3+ {[%clk 0:00:12]} 55. Kg1 {[%clk 0:00:03]}  Rd3 {[%clk 0:00:13]} 56. Ra2 {[%clk 0:00:03]}  Kh7 {[%clk 0:00:13]} 57. Kg2 {[%clk 0:00:03]}  Kg6 {[%clk 0:00:13]} 58. Rb2 {[%clk 0:00:03]}  Rd5 {[%clk 0:00:13]} 59. Rb4 {[%clk 0:00:03]}  Re5 {[%clk 0:00:13]} 60. Rb2 {[%clk 0:00:03]}  Re6 {[%clk 0:00:13]} 61. Ra2 {[%clk 0:00:04]}  Re4 {[%clk 0:00:12]} 62. Rb2 {[%clk 0:00:04]}  f5 {[%clk 0:00:13]} 63. Ra2 {[%clk 0:00:05]}  f4 {[%clk 0:00:13]} 64. Ra6+ {[%clk 0:00:05]}  Kf5 {[%clk 0:00:13]} 65. Ra5+ {[%clk 0:00:06]}  Re5 {[%clk 0:00:13]} 66. Ra2 {[%clk 0:00:06]}  Be2 {[%clk 0:00:12]} 67. Ra3 {[%clk 0:00:05]}  Kg4 {[%clk 0:00:12]} 68. Ra2 {[%clk 0:00:05]}  Bc4 {[%clk 0:00:10]} 69. Rb2 {[%clk 0:00:04]}  Re2 {[%clk 0:00:09]} 70. Rxe2 {[%clk 0:00:02]}  Bxe2 {[%clk 0:00:09]} 71. Kg1 {[%clk 0:00:03]}  Bf3 {[%clk 0:00:07]} 72. Be1 {[%clk 0:00:03]}  Bd5 {[%clk 0:00:07]} 73. Bf2 {[%clk 0:00:04]}  g6 {[%clk 0:00:07]} 74. Be1 {[%clk 0:00:04]}  Kf3 {[%clk 0:00:07]} 75. Bf2 {[%clk 0:00:04]}  Kg4 {[%clk 0:00:07]} 76. Be1 {[%clk 0:00:05]}  g5 {[%clk 0:00:06]} 77. hxg5 {[%clk 0:00:05]}  Kxg5 {[%clk 0:00:07]} 78. Bf2 {[%clk 0:00:05]}  Kg4 {[%clk 0:00:08]} 79. Kh2 {[%clk 0:00:06]}  Kf3 {[%clk 0:00:08]} 80. Bh4 {[%clk 0:00:06]}  Ke2 {[%clk 0:00:08]} 81. Kg1 {[%clk 0:00:06]}  f3 {[%clk 0:00:09]} 82. Bf2 {[%clk 0:00:07]}  Be4 {[%clk 0:00:09]} 83. Bh4 {[%clk 0:00:08]}  Bf5 {[%clk 0:00:09]} 84. Bf2 {[%clk 0:00:08]}  Bh3 {[%clk 0:00:10]} 85. Bh4 {[%clk 0:00:09]}  Bg2 {[%clk 0:00:10]} 86. Bf2 {[%clk 0:00:10]}  Kd3 {[%clk 0:00:11]} 87. Bh4 {[%clk 0:00:10]}  Ke4 {[%clk 0:00:12]} 88. Bf2 {[%clk 0:00:10]}  Kf4 {[%clk 0:00:12]} 89. Kh2 {[%clk 0:00:10]}  Kg4 {[%clk 0:00:13]} 90. Be1 {[%clk 0:00:09]}  Bf1 {[%clk 0:00:13]} 91. Bf2 {[%clk 0:00:09]}  h4 {[%clk 0:00:13]} 92. Kg1 {[%clk 0:00:08]}  h3 {[%clk 0:00:14]} 93. Kh2 {[%clk 0:00:07]}  Kf4 {[%clk 0:00:13]} 94. Kg1 {[%clk 0:00:06]}  Ke4 {[%clk 0:00:14]} 95. Bg3 {[%clk 0:00:07]}  Bg2 {[%clk 0:00:13]} 96. Kf2 {[%clk 0:00:07]}  Kd3 {[%clk 0:00:13]} 97. Bh2 {[%clk 0:00:07]}  Kd2 {[%clk 0:00:14]} 98. Bg1 {[%clk 0:00:08]}  Kd3 {[%clk 0:00:13]} 99. Bh2 {[%clk 0:00:08]}  Kd2 {[%clk 0:00:14]} 100. Bg1 {[%clk 0:00:09]}  Kd3 {[%clk 0:00:15]} 101. Bh2 {[%clk 0:00:09]} 1/2-1/2


[Site "https://www.chess.com"]

[Event "Titled Tuesday Blitz October 25 Late 2022"]
[White "Graif, William"]
[Black "Luxama, Jacques Muller"]
[WhiteFideId "2609835"]
[BlackFideId "11900113"]
[WhiteElo "2205"]
[BlackElo "1931"]
[Result "1-0"]
[Round "09"]
[TimeControl "180+1"]
[Date "2022.10.26"]
[WhiteClock "0:00:11"]
[BlackClock "0:00:02"]

1. d4 {[%clk 0:02:57]}  Nf6 {[%clk 0:02:55]} 2. Nc3 {[%clk 0:02:57]}  d5 {[%clk 0:02:52]} 3. e4 {[%clk 0:02:57]}  dxe4 {[%clk 0:02:48]} 4. Bg5 {[%clk 0:02:54]}  Bf5 {[%clk 0:02:43]} 5. f3 {[%clk 0:02:53]}  exf3 {[%clk 0:02:42]} 6. Qxf3 {[%clk 0:02:52]}  Qc8 {[%clk 0:02:37]} 7. Bc4 {[%clk 0:02:46]}  e6 {[%clk 0:02:28]} 8. Bxf6 {[%clk 0:02:44]}  gxf6 {[%clk 0:02:27]} 9. g4 {[%clk 0:02:41]}  Bxc2 {[%clk 0:02:20]} 10. d5 {[%clk 0:02:39]}  Be7 {[%clk 0:02:05]} 11. dxe6 {[%clk 0:02:20]}  O-O {[%clk 0:01:57]} 12. exf7+ {[%clk 0:02:13]}  Kh8 {[%clk 0:01:57]} 13. Qe2 {[%clk 0:02:02]}  Nc6 {[%clk 0:01:27]} 14. Qxc2 {[%clk 0:01:53]}  Qxg4 {[%clk 0:01:26]} 15. Qe4 {[%clk 0:01:31]}  Qh5 {[%clk 0:00:59]} 16. Be2 {[%clk 0:00:56]}  Qh6 {[%clk 0:00:51]} 17. Nf3 {[%clk 0:00:38]}  Rxf7 {[%clk 0:00:42]} 18. Qh4 {[%clk 0:00:29]}  Qe3 {[%clk 0:00:39]} 19. Qe4 {[%clk 0:00:25]}  Qh6 {[%clk 0:00:37]} 20. O-O {[%clk 0:00:20]}  Rg8+ {[%clk 0:00:31]} 21. Kh1 {[%clk 0:00:20]}  Rfg7 {[%clk 0:00:29]} 22. Rg1 {[%clk 0:00:19]}  Qh3 {[%clk 0:00:20]} 23. Rxg7 {[%clk 0:00:18]}  Rxg7 {[%clk 0:00:20]} 24. Rg1 {[%clk 0:00:18]}  Rxg1+ {[%clk 0:00:07]} 25. Nxg1 {[%clk 0:00:18]}  Qh6 {[%clk 0:00:06]} 26. Bd3 {[%clk 0:00:15]}  Bd6 {[%clk 0:00:05]} 27. Qg2 {[%clk 0:00:14]}  Ne5 {[%clk 0:00:03]} 28. Be4 {[%clk 0:00:12]}  Ng4 {[%clk 0:00:02]} 29. Nf3 {[%clk 0:00:11]} 1-0


[Site "https://www.chess.com"]

[Event "Titled Tuesday Blitz October 25 Late 2022"]
[White "Haszon, David"]
[Black "Zochowski, Kacper"]
[WhiteFideId "733610"]
[BlackFideId "1125494"]
[WhiteElo "2211"]
[BlackElo "2292"]
[Result "1-0"]
[Round "09"]
[TimeControl "180+1"]
[Date "2022.10.26"]
[WhiteClock "0:00:13"]
[BlackClock "0:00:05"]

1. d4 {[%clk 0:03:00]}  d6 {[%clk 0:02:58]} 2. Nc3 {[%clk 0:03:00]}  Nd7 {[%clk 0:02:58]} 3. e4 {[%clk 0:02:59]}  e5 {[%clk 0:02:57]} 4. Nf3 {[%clk 0:02:50]}  Ngf6 {[%clk 0:02:57]} 5. Bc4 {[%clk 0:02:45]}  Be7 {[%clk 0:02:57]} 6. O-O {[%clk 0:02:45]}  O-O {[%clk 0:02:57]} 7. h3 {[%clk 0:02:44]}  c6 {[%clk 0:02:57]} 8. a4 {[%clk 0:02:44]}  a5 {[%clk 0:02:57]} 9. Be3 {[%clk 0:02:43]}  exd4 {[%clk 0:02:56]} 10. Nxd4 {[%clk 0:02:42]}  Nc5 {[%clk 0:02:57]} 11. Qf3 {[%clk 0:02:35]}  Re8 {[%clk 0:02:52]} 12. Rad1 {[%clk 0:02:14]}  Qb6 {[%clk 0:02:46]} 13. Nb3 {[%clk 0:02:09]}  Qb4 {[%clk 0:02:46]} 14. Bxc5 {[%clk 0:02:01]}  dxc5 {[%clk 0:02:37]} 15. Bxf7+ {[%clk 0:01:56]}  Kxf7 {[%clk 0:02:35]} 16. e5 {[%clk 0:01:57]}  Be6 {[%clk 0:02:31]} 17. exf6 {[%clk 0:01:51]}  Bxf6 {[%clk 0:02:31]} 18. Ne4 {[%clk 0:01:47]}  Kg6 {[%clk 0:02:03]} 19. Qg3+ {[%clk 0:01:28]}  Kh6 {[%clk 0:02:03]} 20. Qf4+ {[%clk 0:01:19]}  Kg6 {[%clk 0:02:01]} 21. Nbxc5 {[%clk 0:01:09]}  Bd5 {[%clk 0:01:55]} 22. Qg3+ {[%clk 0:01:07]}  Kh6 {[%clk 0:01:54]} 23. Nxf6 {[%clk 0:01:01]}  gxf6 {[%clk 0:01:53]} 24. Nd7 {[%clk 0:00:57]}  Qxb2 {[%clk 0:01:49]} 25. Qh4+ {[%clk 0:00:51]}  Kg7 {[%clk 0:01:50]} 26. Rd4 {[%clk 0:00:48]}  Re6 {[%clk 0:01:43]} 27. c4 {[%clk 0:00:40]}  Bxc4 {[%clk 0:01:12]} 28. Rxc4 {[%clk 0:00:37]}  Rd8 {[%clk 0:01:13]} 29. Nc5 {[%clk 0:00:33]}  Re7 {[%clk 0:01:09]} 30. Rg4+ {[%clk 0:00:26]}  Kh8 {[%clk 0:01:09]} 31. Rf4 {[%clk 0:00:21]}  Rf8 {[%clk 0:00:19]} 32. Ne4 {[%clk 0:00:20]}  Ref7 {[%clk 0:00:15]} 33. Re1 {[%clk 0:00:19]}  Qb4 {[%clk 0:00:09]} 34. Re3 {[%clk 0:00:17]}  Qb1+ {[%clk 0:00:09]} 35. Kh2 {[%clk 0:00:17]}  Qa1 {[%clk 0:00:10]} 36. Ref3 {[%clk 0:00:17]}  Qe5 {[%clk 0:00:11]} 37. g3 {[%clk 0:00:15]}  f5 {[%clk 0:00:11]} 38. Ng5 {[%clk 0:00:15]}  Rg7 {[%clk 0:00:11]} 39. Qh5 {[%clk 0:00:13]}  Qd5 {[%clk 0:00:07]} 40. h4 {[%clk 0:00:13]}  Qe5 {[%clk 0:00:07]} 41. Re3 {[%clk 0:00:13]}  Qd5 {[%clk 0:00:07]} 42. Qf3 {[%clk 0:00:13]}  Qa2 {[%clk 0:00:07]} 43. Rxf5 {[%clk 0:00:13]}  Rgg8 {[%clk 0:00:05]} 44. Rxf8 {[%clk 0:00:13]} 1-0


[Site "https://www.chess.com"]

[Event "Titled Tuesday Blitz October 25 Late 2022"]
[White "Jimenez Almeida, Luis David"]
[Black "Thomforde-Toates, Noah"]
[WhiteFideId "22242244"]
[BlackFideId "30951992"]
[WhiteElo "2158"]
[BlackElo "2651"]
[Result "0-1"]
[Round "09"]
[TimeControl "180+1"]
[Date "2022.10.26"]
[WhiteClock "0:00:14"]
[BlackClock "0:00:27"]

1. d4 {[%clk 0:02:59]}  Nf6 {[%clk 0:02:59]} 2. Nf3 {[%clk 0:02:59]}  g6 {[%clk 0:02:59]} 3. Bg5 {[%clk 0:02:59]}  Bg7 {[%clk 0:03:00]} 4. Nbd2 {[%clk 0:02:59]}  d5 {[%clk 0:02:59]} 5. e3 {[%clk 0:02:59]}  O-O {[%clk 0:03:00]} 6. b4 {[%clk 0:03:00]}  Nbd7 {[%clk 0:02:58]} 7. Be2 {[%clk 0:02:59]}  c6 {[%clk 0:02:57]} 8. c3 {[%clk 0:02:58]}  Re8 {[%clk 0:02:55]} 9. O-O {[%clk 0:02:56]}  e5 {[%clk 0:02:54]} 10. a4 {[%clk 0:02:55]}  e4 {[%clk 0:02:52]} 11. Ne1 {[%clk 0:02:55]}  Nf8 {[%clk 0:02:47]} 12. c4 {[%clk 0:02:48]}  Ne6 {[%clk 0:02:43]} 13. Bh4 {[%clk 0:02:48]}  h5 {[%clk 0:02:40]} 14. Bg3 {[%clk 0:02:34]}  Nd7 {[%clk 0:02:37]} 15. h3 {[%clk 0:02:22]}  h4 {[%clk 0:02:34]} 16. Bh2 {[%clk 0:02:21]}  Qg5 {[%clk 0:02:34]} 17. b5 {[%clk 0:02:17]}  Nf6 {[%clk 0:02:24]} 18. bxc6 {[%clk 0:02:08]}  bxc6 {[%clk 0:02:23]} 19. c5 {[%clk 0:02:03]}  Nh5 {[%clk 0:02:21]} 20. Kh1 {[%clk 0:01:46]}  f5 {[%clk 0:01:57]} 21. Nb3 {[%clk 0:01:24]}  f4 {[%clk 0:01:26]} 22. Bxh5 {[%clk 0:01:19]}  gxh5 {[%clk 0:01:25]} 23. Na5 {[%clk 0:01:01]}  Ba6 {[%clk 0:01:16]} 24. Rg1 {[%clk 0:01:00]}  fxe3 {[%clk 0:01:15]} 25. fxe3 {[%clk 0:01:01]}  Qxe3 {[%clk 0:01:14]} 26. Nxc6 {[%clk 0:00:57]}  Nxd4 {[%clk 0:01:11]} 27. Nb4 {[%clk 0:00:42]}  Bc4 {[%clk 0:00:57]} 28. Qxh5 {[%clk 0:00:37]}  Ne2 {[%clk 0:00:51]} 29. Nxd5 {[%clk 0:00:36]}  Bxd5 {[%clk 0:00:38]} 30. Qxd5+ {[%clk 0:00:35]}  Kh8 {[%clk 0:00:34]} 31. Rd1 {[%clk 0:00:32]}  Nxg1 {[%clk 0:00:32]} 32. Qh5+ {[%clk 0:00:31]}  Qh6 {[%clk 0:00:32]} 33. Qxh6+ {[%clk 0:00:29]}  Bxh6 {[%clk 0:00:32]} 34. Kxg1 {[%clk 0:00:27]}  Rad8 {[%clk 0:00:33]} 35. Bd6 {[%clk 0:00:27]}  e3 {[%clk 0:00:32]} 36. Rd4 {[%clk 0:00:25]}  Bg5 {[%clk 0:00:29]} 37. Rg4 {[%clk 0:00:24]}  Bf6 {[%clk 0:00:28]} 38. Rg6 {[%clk 0:00:17]}  Re6 {[%clk 0:00:27]} 39. Kf1 {[%clk 0:00:15]}  e2+ {[%clk 0:00:27]} 40. Kf2 {[%clk 0:00:14]}  Bd4+ {[%clk 0:00:27]} 0-1


[Site "https://www.chess.com"]